bitfinex-derivatives/quotes_BTCF0:USTF0_20241010
["timestamp","ask_amount","ask_price","bid_price","bid_amount"]
[1728602456101,0.002,60330.0,60329.0,0.890453]
[1728602460499,0.002,60330.0,60329.0,0.760453]
[1728602460802,0.002,60330.0,60329.0,0.890453]
[1728602462007,0.002,60330.0,60329.0,0.95647972]
[1728602468899,0.02889004,60330.0,60329.0,0.168853]
[1728602469209,0.02889004,60330.0,60329.0,0.890453]
[1728602470014,0.002,60330.0,60329.0,0.94000186]
[1728602472606,0.002,60330.0,60329.0,0.890453]
[1728602473011,0.02888967,60330.0,60329.0,0.890453]
[1728602474712,0.02888929,60330.0,60329.0,0.890453]
[1728602474913,0.02888929,60330.0,60329.0,0.94000186]
[1728602474914,0.002,60330.0,60329.0,0.94000186]
[1728602476906,0.002,60330.0,60329.0,0.890453]
[1728602478511,0.002,60330.0,60329.0,0.760453]
[1728602479200,0.002,60330.0,60329.0,0.890453]
[1728602483922,0.002,60330.0,60329.0,0.95653006]
[1728602484117,0.002,60330.0,60329.0,0.890453]
[1728602485712,0.02677679,60330.0,60329.0,0.890453]
[1728602485912,0.002,60330.0,60329.0,0.890453]
[1728602490516,0.002,60330.0,60329.0,0.529653]
[1728602492217,0.02889092,60330.0,60329.0,0.529653]
[1728602494631,0.02889037,60330.0,60329.0,0.529653]
[1728602499039,0.002,60330.0,60329.0,0.59573006]
[1728602502131,0.002,60330.0,60329.0,0.399653]
[1728602502132,0.132,60330.0,60329.0,0.399653]
[1728602503932,0.132,60330.0,60329.0,0.038853]
[1728602504128,0.132,60330.0,60329.0,0.399653]
[1728602504335,0.002,60330.0,60329.0,0.399653]
[1728602505239,0.002,60330.0,60329.0,0.449653]
[1728602505427,0.002,60330.0,60329.0,0.579653]
[1728602507036,0.02889091,60330.0,60329.0,0.579653]
[1728602511934,0.02889091,60330.0,60329.0,0.218853]
[1728602512135,0.02889091,60330.0,60329.0,0.579653]
[1728602514037,0.002,60330.0,60329.0,0.64573006]
[1728602515235,0.132,60330.0,60329.0,0.51573006]
[1728602515438,1.33082508,60330.0,60329.0,0.46240194]
[1728602515829,2.07082508,60330.0,60329.0,0.4128]
[1728602516027,2.20082508,60330.0,60329.0,0.4128]
[1728602516646,1.47082508,60330.0,60329.0,0.4128]
[1728602518434,1.60082508,60330.0,60329.0,0.4128]
[1728602519041,1.10354508,60330.0,60329.0,0.4128]
[1728602519248,0.97354508,60330.0,60329.0,0.4128]
[1728602519539,1.10354508,60330.0,60329.0,0.4128]
[1728602520638,0.84354508,60330.0,60329.0,0.487454]
[1728602521236,0.84354508,60330.0,60329.0,0.126654]
[1728602521237,0.84354609,60330.0,60329.0,0.126654]
[1728602521935,0.816653,60330.0,60329.0,0.126654]
[1728602522140,0.84354603,60330.0,60329.0,0.126654]
[1728602522734,0.10354603,60330.0,60329.0,0.126654]
[1728602523041,0.23354603,60330.0,60329.0,0.126654]
[1728602529047,0.336653,60330.0,60329.0,0.126654]
[1728602529549,0.206653,60330.0,60329.0,0.126654]
[1728602529851,0.36354609,60330.0,60329.0,0.126654]
[1728602532250,0.10354609,60330.0,60329.0,0.126654]
[1728602532451,0.23354609,60330.0,60329.0,0.126654]
[1728602534654,0.23354609,60330.0,60329.0,0.124854]
[1728602534860,0.23354605,60330.0,60329.0,0.105054]
[1728602535246,0.23354577,60330.0,60329.0,0.105054]
[1728602535554,0.206653,60330.0,60329.0,0.105054]
[1728602535753,0.23354609,60330.0,60329.0,0.105054]
[1728602536354,0.02889309,60330.0,60329.0,0.105054]
[1728602536550,0.132,60330.0,60329.0,0.105054]
[1728602537046,0.002,60330.0,60329.0,0.105054]
[1728602537250,0.132,60330.0,60329.0,0.105054]
[1728602538258,0.15889179,60330.0,60329.0,0.105054]
[1728602539870,0.132,60330.0,60329.0,0.105054]
[1728602541150,0.002,60330.0,60329.0,0.105054]
[1728602541350,0.132,60330.0,60329.0,0.105054]
[1728602541954,0.132,60330.0,60329.0,0.15465594]
[1728602542462,0.132,60330.0,60329.0,0.105054]
[1728602542652,0.132,60330.0,60329.0,0.1546035]
[1728602544052,0.132,60330.0,60329.0,0.105054]
[1728602544957,0.132,60330.0,60329.0,0.0304]
[1728602545265,0.36354436,60330.0,60329.0,0.08000535]
[1728602545557,0.36354436,60330.0,60329.0,0.0304]
[1728602546555,0.336653,60330.0,60329.0,0.0304]
[1728602547652,0.13,60326.0,60316.0,0.01088604]
[1728602547856,0.435465,60321.0,60320.0,0.074664]
[1728602548862,0.565465,60321.0,60320.0,0.074664]
[1728602549565,0.074668,60318.0,60316.0,0.00248604]
[1728602549769,0.26,60317.0,60316.0,0.07815604]
[1728602550369,0.26,60317.0,60316.0,0.07715604]
[1728602550661,0.13,60317.0,60316.0,0.07715604]
[1728602551058,0.133,60317.0,60316.0,0.07815604]
[1728602551260,0.136,60317.0,60316.0,0.07915604]
[1728602553170,0.136,60317.0,60316.0,0.11165604]
[1728602561673,0.006,60317.0,60316.0,0.11165604]
[1728602565886,0.136,60317.0,60316.0,0.07915604]
[1728602568793,0.135,60317.0,60316.0,0.07815604]
[1728602569193,0.134,60317.0,60316.0,0.07815604]
[1728602572698,0.4948,60317.0,60316.0,0.07815604]
[1728602574490,0.134,60317.0,60316.0,0.07567]
[1728602574694,0.4948,60317.0,60316.0,0.07567]
[1728602580098,0.3648,60317.0,60316.0,0.07567]
[1728602580299,0.004,60317.0,60316.0,0.07567]
[1728602589109,0.004,60317.0,60316.0,0.14185909]
[1728602589311,0.004,60317.0,60316.0,0.12531181]
[1728602589906,0.004,60317.0,60316.0,0.07567]
[1728602591109,0.004,60317.0,60316.0,0.10797]
[1728602591312,0.004,60317.0,60316.0,0.29550769]
[1728602591511,0.004,60317.0,60316.0,0.16550769]
[1728602595615,0.004,60317.0,60316.0,0.13957]
[1728602595811,0.004,60317.0,60316.0,0.18916224]
[1728602596010,0.004,60317.0,60316.0,0.21357075]
[1728602597212,0.004,60317.0,60316.0,0.16397894]
[1728602597610,0.004,60317.0,60316.0,0.52477894]
[1728602598212,0.004,60317.0,60316.0,0.55071705]
[1728602598915,0.004,60317.0,60316.0,0.68071705]
[1728602599115,0.0039,60323.0,60322.0,0.074663]
[1728602599316,0.0039,60327.0,60326.0,0.074658]
[1728602599514,0.13,60329.0,60328.0,0.074655]
[1728602600807,0.132,60329.0,60328.0,0.075655]
[1728602601322,0.002,60329.0,60328.0,0.566455]
[1728602601519,0.004,60329.0,60328.0,0.567455]
[1728602602218,0.004,60329.0,60328.0,0.59219879]
[1728602602913,0.004,60329.0,60328.0,0.64169118]
[1728602603620,0.004,60329.0,60328.0,0.64168184]
[1728602605409,0.004,60329.0,60328.0,0.59219879]
[1728602606515,0.004,60329.0,60328.0,0.23139879]
[1728602606716,0.004,60329.0,60328.0,0.59219879]
[1728602611623,0.004,60329.0,60328.0,0.076655]
[1728602615127,0.004,60329.0,60328.0,0.206655]
[1728602620427,0.004,60329.0,60328.0,0.25613805]
[1728602622236,0.004,60329.0,60328.0,0.61693805]
[1728602623533,0.004,60329.0,60328.0,0.567455]
[1728602625427,0.004,60329.0,60328.0,0.12614856]
[1728602625825,0.004,60329.0,60328.0,0.076655]
[1728602626539,0.004,60329.0,60328.0,0.12614856]
[1728602627438,0.004,60329.0,60328.0,0.076655]
[1728602628529,0.03089181,60329.0,60328.0,0.076655]
[1728602629435,0.004,60329.0,60328.0,0.076655]
[1728602629628,0.004,60329.0,60328.0,0.075655]
[1728602629940,0.1339,60330.0,60328.0,0.002]
[1728602630234,0.13,60330.0,60329.0,0.12414756]
[1728602631943,0.13,60330.0,60329.0,0.074654]
[1728602632445,0.13,60330.0,60329.0,0.12420342]
[1728602633239,0.13,60330.0,60329.0,0.12520342]
[1728602633449,0.0039,60333.0,60332.0,0.07465]
[1728602633642,0.09954464,60334.0,60333.0,0.074649]
[1728602634440,0.0607,60336.0,60335.0,0.074646]
[1728602634740,0.08759021,60336.0,60335.0,0.057546]
[1728602635137,0.08759021,60336.0,60335.0,0.037746]
[1728602636239,0.08759021,60336.0,60335.0,0.038746]
[1728602642145,0.0607,60336.0,60335.0,0.038746]
[1728602644546,0.0607,60336.0,60335.0,0.0882819]
[1728602644737,0.0607,60336.0,60335.0,0.08828801]
[1728602646351,0.17808564,60340.0,60335.0,0.08828801]
[1728602646352,0.0039,60340.0,60339.0,0.074642]
[1728602646644,0.22954464,60343.0,60342.0,0.074638]
[1728602646846,0.15688818,60343.0,60342.0,0.074638]
[1728602647249,0.28028085,60343.0,60342.0,0.074638]
[1728602647443,0.18073621,60343.0,60342.0,0.074638]
[1728602648450,0.18073621,60343.0,60342.0,0.076638]
[1728602654250,0.38537321,60343.0,60342.0,0.076638]
[1728602654445,0.43558616,60343.0,60342.0,0.076638]
[1728602657051,0.30558616,60343.0,60342.0,0.076638]
[1728602657452,0.35482701,60343.0,60342.0,0.076638]
[1728602658154,0.35482809,60343.0,60342.0,0.076638]
[1728602658358,0.25537429,60343.0,60342.0,0.076638]
[1728602660746,0.25537429,60343.0,60342.0,0.059638]
[1728602661154,0.25537429,60343.0,60342.0,0.046538]
[1728602661455,0.25537429,60343.0,60342.0,0.033438]
[1728602663957,0.38537429,60343.0,60342.0,0.002]
[1728602664152,0.38537429,60343.0,60335.0,0.0039]
[1728602664153,0.074644,60337.0,60336.0,0.12418989]
[1728602664354,0.435444,60337.0,60336.0,0.12418989]
[1728602664559,0.46233326,60337.0,60336.0,0.074644]
[1728602666061,0.46333326,60337.0,60336.0,0.074644]
[1728602666354,0.46433326,60337.0,60336.0,0.075644]
[1728602667250,0.46333326,60337.0,60336.0,0.074644]
[1728602667460,0.52833356,60337.0,60336.0,0.075644]
[1728602667852,0.52933356,60337.0,60336.0,0.001]
[1728602668459,0.49724,60336.0,60328.0,0.0039]
[1728602668657,0.07466,60325.0,60323.0,0.0039]
[1728602668956,0.20466,60325.0,60324.0,0.07466]
[1728602669154,0.2315548,60325.0,60324.0,0.07466]
[1728602670557,0.20466,60325.0,60324.0,0.07766]
[1728602671059,0.20466,60325.0,60324.0,0.08266]
[1728602671258,0.20566,60325.0,60324.0,0.08266]
[1728602672868,0.20566,60325.0,60324.0,0.07766]
[1728602673360,0.22980175,60325.0,60324.0,0.07766]
[1728602674656,0.22980175,60325.0,60324.0,0.003]
[1728602676466,0.35980175,60325.0,60324.0,0.003]
[1728602677361,0.22980175,60325.0,60324.0,0.003]
[1728602681168,0.59060175,60325.0,60324.0,0.003]
[1728602681764,0.59160175,60325.0,60324.0,0.001]
[1728602681968,0.59260175,60325.0,60324.0,0.002]
[1728602683066,0.59060175,60325.0,60324.0,0.001]
[1728602683265,0.59260175,60325.0,60324.0,0.002]
[1728602684263,0.59260175,60325.0,60324.0,0.001]
[1728602684264,0.59160175,60325.0,60324.0,0.001]
[1728602684471,0.59260175,60325.0,60324.0,0.002]
[1728602685975,0.59460175,60325.0,60324.0,0.002]
[1728602686465,0.59460175,60325.0,60324.0,0.001]
[1728602686672,0.59460175,60325.0,60324.0,0.002]
[1728602686865,0.59060175,60325.0,60324.0,0.001]
[1728602687166,0.59460175,60325.0,60324.0,0.002]
[1728602687768,0.59460175,60325.0,60324.0,0.07666]
[1728602688567,0.59360175,60325.0,60324.0,0.07666]
[1728602689268,0.59260175,60325.0,60324.0,0.07566]
[1728602689468,0.59360175,60325.0,60324.0,0.07666]
[1728602690168,0.59060175,60325.0,60324.0,0.07566]
[1728602690368,0.59360175,60325.0,60324.0,0.07666]
[1728602691376,0.59360175,60325.0,60324.0,0.07566]
[1728602693178,0.59260175,60325.0,60324.0,0.07566]
[1728602693375,0.59060175,60325.0,60324.0,0.07466]
[1728602693581,0.59360175,60325.0,60324.0,0.07566]
[1728602700282,0.46360175,60325.0,60324.0,0.07566]
[1728602700497,0.38894175,60325.0,60324.0,0.12520589]
[1728602700671,0.38894175,60325.0,60324.0,0.07566]
[1728602700672,0.46360075,60325.0,60324.0,0.07566]
[1728602701078,0.38894175,60325.0,60324.0,0.07566]
[1728602701473,0.3648,60325.0,60324.0,0.07566]
[1728602701880,0.3648,60325.0,60324.0,0.25527766]
[1728602702079,0.3648,60325.0,60324.0,0.20566]
[1728602702474,0.004,60325.0,60324.0,0.20566]
[1728602702680,0.0039,60328.0,60324.0,1.36907515]
[1728602702877,0.3608,60335.0,60327.0,0.334656]
[1728602703083,0.02689098,60334.0,60333.0,0.074649]
[1728602703284,0.09949772,60339.0,60333.0,0.1617]
[1728602703479,0.07464,60340.0,60337.0,0.074644]
[1728602703685,0.13248709,60338.0,60337.0,0.074644]
[1728602705088,0.13248709,60338.0,60337.0,0.075644]
[1728602705891,0.13248709,60338.0,60337.0,0.076644]
[1728602706284,0.00248709,60338.0,60337.0,0.206644]
[1728602714890,0.00248709,60338.0,60337.0,0.236844]
[1728602716694,0.0238766,60342.0,60341.0,0.074639]
[1728602716888,0.02400471,60348.0,60345.0,0.074634]
[1728602717089,0.02400471,60348.0,60345.0,0.063934]
[1728602718200,0.09863471,60348.0,60345.0,0.063934]
[1728602718592,0.09863471,60348.0,60345.0,0.064934]
[1728602719393,0.09863471,60348.0,60345.0,0.065934]
[1728602719592,0.13201754,60346.0,60345.0,0.065934]
[1728602720698,0.49281754,60346.0,60345.0,0.065934]
[1728602722704,0.56745054,60346.0,60345.0,0.065934]
[1728602725909,0.56745054,60346.0,60345.0,0.064934]
[1728602726210,0.56745054,60346.0,60345.0,0.065934]
[1728602732006,0.36281754,60346.0,60345.0,0.195934]
[1728602732396,0.36281754,60346.0,60345.0,0.065934]
[1728602732602,0.49281754,60346.0,60345.0,0.065934]
[1728602739411,0.51970408,60346.0,60345.0,0.065934]
[1728602739715,0.6192018,60346.0,60345.0,0.065934]
[1728602740109,0.51970408,60346.0,60345.0,0.065934]
[1728602740310,0.6192018,60346.0,60345.0,0.065934]
[1728602740505,0.51970408,60346.0,60345.0,0.065934]
[1728602741011,0.51970393,60346.0,60345.0,0.065934]
[1728602741515,0.61920165,60346.0,60345.0,0.065934]
[1728602742516,0.25840165,60346.0,60345.0,0.065934]
[1728602742714,0.61920165,60346.0,60345.0,0.065934]
[1728602743102,0.25840165,60346.0,60345.0,0.065934]
[1728602743311,0.15890393,60346.0,60345.0,0.065934]
[1728602743709,0.02890393,60346.0,60345.0,0.065934]
[1728602744206,0.00201754,60346.0,60345.0,0.195934]
[1728602744405,0.02890153,60346.0,60345.0,0.195934]
[1728602744609,0.00201754,60346.0,60345.0,0.195934]
[1728602744814,0.00201754,60346.0,60345.0,0.24551951]
[1728602745014,0.00201754,60346.0,60345.0,0.24551883]
[1728602745211,0.00201754,60346.0,60345.0,0.195934]
[1728602746515,0.13201754,60346.0,60345.0,0.065934]
[1728602747207,0.49281754,60346.0,60345.0,0.11551488]
[1728602747417,0.49281754,60346.0,60345.0,0.065934]
[1728602750021,0.56745054,60346.0,60345.0,0.065934]
[1728602754227,0.56745054,60346.0,60345.0,0.002]
[1728602754415,0.59433664,60346.0,60345.0,0.002]
[1728602754725,0.69383436,60346.0,60345.0,0.002]
[1728602754924,0.69383459,60346.0,60345.0,0.002]
[1728602755521,0.23353687,60346.0,60345.0,0.002]
[1728602756127,0.33303459,60346.0,60345.0,0.002]
[1728602756925,0.33303459,60346.0,60345.0,0.076634]
[1728602758132,0.23353687,60346.0,60345.0,0.076634]
[1728602758832,0.33300912,60346.0,60345.0,0.076634]
[1728602759227,0.23353687,60346.0,60345.0,0.076634]
[1728602759530,0.074638,60342.0,60337.0,0.05348088]
[1728602759725,0.074646,60335.0,60334.0,0.074647]
[1728602760027,0.23153575,60335.0,60334.0,0.074647]
[1728602760734,0.10153575,60335.0,60334.0,0.074647]
[1728602761120,0.23153575,60335.0,60334.0,0.074647]
[1728602761328,0.23153575,60335.0,60334.0,0.075647]
[1728602761836,0.204646,60335.0,60334.0,0.075647]
[1728602762132,0.205646,60335.0,60334.0,0.075647]
[1728602762737,0.131,60335.0,60334.0,0.075647]
[1728602765632,0.205646,60335.0,60334.0,0.075647]
[1728602766429,0.22976972,60335.0,60334.0,0.075647]
[1728602766635,0.35976972,60335.0,60334.0,0.001]
[1728602767133,0.25666291,60335.0,60334.0,0.001]
[1728602767334,0.22976972,60335.0,60334.0,0.001]
[1728602769046,0.95136972,60335.0,60334.0,0.001]
[1728602769751,0.95136972,60335.0,60325.0,0.0039]
[1728602769752,0.49724,60334.0,60325.0,0.0039]
[1728602769942,0.074661,60325.0,60324.0,0.07466]
[1728602770149,0.204661,60325.0,60324.0,0.07466]
[1728602771454,0.204661,60325.0,60324.0,0.07766]
[1728602772046,0.204661,60325.0,60324.0,0.08566]
[1728602774355,0.204661,60325.0,60324.0,0.011]
[1728602774650,0.204661,60325.0,60318.0,0.074666]
[1728602774651,0.074669,60319.0,60318.0,0.074666]
[1728602774852,0.074669,60319.0,60308.0,0.204679]
[1728602774853,0.565469,60319.0,60309.0,0.0039]
[1728602775057,0.565469,60319.0,60309.0,0.074679]
[1728602775058,0.13,60310.0,60309.0,0.074679]
[1728602775745,0.13,60310.0,60307.0,0.00248709]
[1728602775958,0.20468,60308.0,60307.0,0.00248709]
[1728602777945,0.20568,60308.0,60307.0,0.00948709]
[1728602778146,0.20668,60308.0,60307.0,0.01948709]
[1728602780057,0.07668,60308.0,60307.0,0.01948709]
[1728602780259,0.002,60308.0,60307.0,0.22416809]
[1728602780562,0.002,60308.0,60307.0,0.09416809]
[1728602783861,0.07668,60308.0,60307.0,0.09416809]
[1728602785455,0.07668,60308.0,60307.0,0.01948709]
[1728602785655,0.20668,60308.0,60307.0,0.01948709]
[1728602786069,0.074689,60302.0,60301.0,0.074688]
[1728602786258,0.565489,60302.0,60301.0,0.074688]
[1728602786451,0.625489,60302.0,60301.0,0.060688]
[1728602786657,0.625489,60302.0,60301.0,0.045688]
[1728602786859,0.264689,60302.0,60301.0,0.045688]
[1728602787561,0.264689,60302.0,60301.0,0.053688]
[1728602787562,0.625489,60302.0,60301.0,0.053688]
[1728602787864,0.626489,60302.0,60301.0,0.065688]
[1728602790766,0.626489,60302.0,60301.0,0.02]
[1728602790964,0.65128701,60302.0,60301.0,0.02]
[1728602793063,0.65128701,60302.0,60301.0,0.094689]
[1728602795559,0.65128701,60302.0,60301.0,0.02]
[1728602801964,0.57659801,60302.0,60294.0,0.0039]
[1728602802168,0.57659801,60302.0,60292.0,0.15927988]
[1728602802169,0.074698,60293.0,60292.0,0.074699]
[1728602802364,0.264698,60293.0,60292.0,0.074699]
[1728602802763,0.074701,60291.0,60290.0,0.003]
[1728602804363,0.074701,60291.0,60290.0,0.05255145]
[1728602804563,0.074701,60291.0,60290.0,0.003]
[1728602804765,0.074701,60291.0,60290.0,0.05255145]
[1728602804965,0.075701,60291.0,60290.0,0.003]
[1728602807566,0.001,60291.0,60290.0,0.077702]
[1728602810883,0.0657,60292.0,60290.0,0.003]
[1728602811077,0.0657,60292.0,60291.0,0.074701]
[1728602812187,0.0667,60292.0,60291.0,0.074701]
[1728602812677,0.4275,60292.0,60291.0,0.074701]
[1728602813171,0.4265,60292.0,60291.0,0.074701]
[1728602813372,0.4275,60292.0,60291.0,0.074701]
[1728602813768,0.4275,60292.0,60291.0,0.077701]
[1728602817683,0.4275,60292.0,60291.0,0.110601]
[1728602822276,0.4275,60292.0,60291.0,0.16015245]
[1728602822482,0.5575,60292.0,60291.0,0.16015245]
[1728602823873,0.5575,60292.0,60291.0,0.110601]
[1728602825476,0.5575,60292.0,60291.0,0.077701]
[1728602827591,0.1967,60292.0,60291.0,0.077701]
[1728602827787,0.5575,60292.0,60291.0,0.12725245]
[1728602827984,0.4275,60292.0,60291.0,0.207701]
[1728602828180,0.4275,60292.0,60291.0,0.077701]
[1728602828675,0.4275,60292.0,60291.0,0.14379615]
[1728602829691,0.3618,60292.0,60291.0,0.077701]
[1728602829890,0.001,60292.0,60291.0,0.108901]
[1728602833885,0.0757,60292.0,60291.0,0.003]
[1728602834394,0.10261063,60292.0,60291.0,0.003]
[1728602834891,0.4365,60292.0,60291.0,0.003]
[1728602835085,0.59341166,60292.0,60291.0,0.003]
[1728602835292,0.074703,60289.0,60288.0,0.04968317]
[1728602835495,0.074705,60288.0,60287.0,0.04968317]
[1728602835788,0.074705,60288.0,60286.0,0.04968317]
[1728602835789,0.074706,60287.0,60286.0,0.04968317]
[1728602835988,0.695506,60287.0,60286.0,0.04968317]
[1728602836591,0.6208,60287.0,60284.0,0.06623798]
[1728602836897,0.204708,60285.0,60284.0,0.06623798]
[1728602837099,0.074711,60283.0,60282.0,0.074712]
[1728602837289,0.204711,60283.0,60282.0,0.074712]
[1728602837489,0.26,60283.0,60278.0,0.15733494]
[1728602837694,0.074713,60281.0,60280.0,0.06627157]
[1728602837993,0.3608,60280.0,60276.0,0.0662807]
[1728602838187,0.3608,60280.0,60274.0,0.00248838]
[1728602838188,0.74,60279.0,60275.0,0.0662807]
[1728602838389,0.074721,60275.0,60274.0,0.00248838]
[1728602838691,0.435521,60275.0,60274.0,0.00248838]
[1728602839497,0.435521,60275.0,60274.0,0.05314442]
[1728602839702,0.436521,60275.0,60274.0,0.00348838]
[1728602840507,0.46069317,60275.0,60274.0,0.00348838]
[1728602841107,0.09989317,60275.0,60274.0,0.00348838]
[1728602841302,0.46069317,60275.0,60274.0,0.00348838]
[1728602842104,0.49199317,60275.0,60274.0,0.00348838]
[1728602843506,0.49199317,60275.0,60274.0,0.001]
[1728602843906,0.49199317,60275.0,60268.0,0.04965604]
[1728602843907,0.41727217,60275.0,60268.0,0.04965604]
[1728602844110,0.074732,60266.0,60265.0,0.074733]
[1728602844309,0.264732,60266.0,60265.0,0.074733]
[1728602845806,0.265732,60266.0,60265.0,0.074733]
[1728602846102,0.265732,60266.0,60265.0,0.077733]
[1728602846103,0.266732,60266.0,60265.0,0.077733]
[1728602849407,0.192,60266.0,60265.0,0.077733]
[1728602849603,0.2160346,60266.0,60265.0,0.077733]
[1728602851611,0.5768346,60266.0,60265.0,0.077733]
[1728602855416,0.6515666,60266.0,60265.0,0.077733]
[1728602860518,0.5915666,60266.0,60265.0,0.077733]
[1728602864613,0.3868346,60266.0,60265.0,0.077733]
[1728602864821,0.5168346,60266.0,60265.0,0.077733]
[1728602865426,0.5168346,60266.0,60265.0,0.1440137]
[1728602866219,0.5168346,60266.0,60265.0,0.077733]
[1728602866719,0.1560346,60266.0,60265.0,0.077733]
[1728602873425,0.1560346,60266.0,60265.0,0.16035194]
[1728602874222,0.1560346,60266.0,60265.0,0.26393516]
[1728602874829,0.1560346,60266.0,60265.0,0.16035194]
[1728602876930,0.1560346,60266.0,60265.0,0.26393572]
[1728602878025,0.0260346,60266.0,60265.0,0.26393572]
[1728602878222,0.0260346,60266.0,60265.0,0.18131678]
[1728602879927,0.1560346,60266.0,60265.0,0.18131678]
[1728602880529,0.1560346,60266.0,60265.0,0.18110154]
[1728602880729,0.0039,60272.0,60271.0,0.074718]
[1728602880926,0.3608,60274.0,60273.0,0.074716]
[1728602881127,0.36718927,60279.0,60273.0,0.074716]
[1728602881328,0.36328927,60279.0,60278.0,0.07471]
[1728602881524,0.36328927,60279.0,60278.0,0.14102332]
[1728602882331,0.00348927,60279.0,60278.0,0.14102332]
[1728602882636,0.0283794,60279.0,60278.0,0.14102332]
[1728602882830,0.00348927,60279.0,60278.0,0.14102332]
[1728602884021,0.13348927,60279.0,60278.0,0.14102332]
[1728602885237,0.13348927,60279.0,60278.0,0.20721279]
[1728602886233,0.13348927,60279.0,60278.0,0.27338878]
[1728602886737,0.00348927,60279.0,60278.0,0.27088599]
[1728602886944,0.0039,60283.0,60278.0,1.32834453]
[1728602887231,0.0039,60286.0,60285.0,0.074701]
[1728602887537,0.0039,60286.0,60282.0,0.19616423]
[1728602887538,0.5157143,60287.0,60286.0,0.0747]
[1728602887738,0.5157143,60287.0,60286.0,0.12430265]
[1728602887924,0.5904123,60287.0,60286.0,0.12430265]
[1728602888123,0.3857143,60287.0,60286.0,0.12430265]
[1728602888343,0.5157143,60287.0,60286.0,0.1242887]
[1728602889631,0.1599143,60287.0,60286.0,0.1242887]
[1728602890232,0.1689143,60287.0,60286.0,0.0747]
[1728602890933,0.1639143,60287.0,60286.0,0.0747]
[1728602891133,0.1549143,60287.0,60286.0,0.0747]
[1728602897032,0.1549143,60287.0,60286.0,0.0549]
[1728602897341,0.1549143,60287.0,60286.0,0.0351]
[1728602897730,0.1549143,60287.0,60284.0,0.0495887]
[1728602897927,0.1549143,60287.0,60286.0,0.0747]
[1728602899329,0.83566001,60292.0,60291.0,0.074693]
[1728602899330,0.00096001,60292.0,60291.0,0.074693]
[1728602899534,0.204691,60294.0,60293.0,0.074691]
[1728602900138,0.204691,60294.0,60293.0,0.12423779]
[1728602900440,0.204691,60294.0,60293.0,0.074691]
[1728602901141,0.003,60294.0,60293.0,0.204691]
[1728602901843,0.01,60294.0,60293.0,0.25423779]
[1728602905240,0.01,60294.0,60293.0,0.204691]
[1728602905443,0.02484588,60296.0,60293.0,1.302251]
[1728602905641,0.0039,60299.0,60293.0,0.702251]
[1728602905847,0.074681,60301.0,60300.0,0.074682]
[1728602906048,0.0636,60304.0,60299.0,0.074684]
[1728602906049,0.105378,60304.0,60299.0,0.074684]
[1728602906236,0.074679,60303.0,60302.0,0.074679]
[1728602906443,0.074679,60303.0,60302.0,0.204679]
[1728602907046,0.02489954,60304.0,60303.0,0.074679]
[1728602907247,0.36164,60320.0,60310.0,0.07467]
[1728602907248,0.0039,60311.0,60310.0,0.07467]
[1728602907451,0.074666,60314.0,60312.0,0.074667]
[1728602907643,0.074666,60314.0,60310.0,0.4908]
[1728602907644,0.074666,60314.0,60313.0,0.074666]
[1728602908941,0.13,60315.0,60310.0,0.54214927]
[1728602908942,0.13,60315.0,60311.0,0.04946927]
[1728602909143,0.13,60315.0,60314.0,0.074665]
[1728602909748,0.074661,60317.0,60316.0,0.074663]
[1728602909951,0.13,60317.0,60316.0,0.074663]
[1728602911148,0.139,60317.0,60316.0,0.075663]
[1728602911656,0.153,60317.0,60316.0,0.075663]
[1728602915458,0.023,60317.0,60316.0,0.205663]
[1728602916451,0.153,60317.0,60316.0,0.075663]
[1728602920662,0.023,60317.0,60316.0,0.205663]
[1728602930157,0.023,60317.0,60316.0,0.25515905]
[1728602931460,0.023,60317.0,60316.0,0.205663]
[1728602940662,0.00248716,60327.0,60324.0,0.074653]
[1728602940867,0.13248716,60327.0,60326.0,0.07465]
[1728602941272,0.20713616,60327.0,60326.0,0.07465]
[1728602942374,0.22113616,60327.0,60326.0,0.07565]
[1728602942870,0.23213616,60327.0,60326.0,0.1418404]
[1728602943183,0.25652644,60327.0,60326.0,0.1418404]
[1728602943472,0.25652644,60327.0,60326.0,0.07565]
[1728602945678,0.25652644,60327.0,60326.0,0.12526934]
[1728602948794,0.12652644,60327.0,60326.0,0.05061934]
[1728602949493,0.12652644,60327.0,60326.0,0.12526934]
[1728602949890,0.12652644,60327.0,60326.0,0.07565]
[1728602952002,0.12652644,60327.0,60319.0,0.00192]
[1728602952003,0.074658,60320.0,60319.0,0.00192]
[1728602952185,0.074658,60320.0,60315.0,0.12430788]
[1728602952186,0.074663,60316.0,60315.0,0.12430788]
[1728602952385,0.204663,60316.0,60315.0,0.074663]
[1728602952687,0.074663,60316.0,60315.0,0.074663]
[1728602954394,0.077663,60316.0,60315.0,0.074663]
[1728602954894,0.077663,60316.0,60315.0,0.075663]
[1728602956593,0.077663,60316.0,60315.0,0.001]
[1728602957607,0.077663,60316.0,60312.0,0.437507]
[1728602957608,0.074666,60313.0,60312.0,0.423607]
[1728602957808,0.204666,60313.0,60312.0,0.421567]
[1728602957995,0.204666,60313.0,60312.0,0.403567]
[1728602958407,0.204666,60313.0,60312.0,0.385567]
[1728602958894,0.204666,60313.0,60312.0,0.389567]
[1728602959202,0.204666,60313.0,60312.0,0.004]
[1728602959892,0.944666,60313.0,60312.0,0.004]
[1728602963408,0.204666,60313.0,60312.0,0.004]
[1728602965610,0.074666,60313.0,60312.0,0.078667]
[1728602965903,0.00084,60315.0,60312.0,0.078667]
[1728602965904,0.02386292,60316.0,60315.0,0.074664]
[1728602966109,0.814662,60317.0,60316.0,0.074663]
[1728602966309,0.074662,60317.0,60316.0,0.074663]
[1728602968006,0.078662,60317.0,60316.0,0.075663]
[1728602968201,0.085662,60317.0,60316.0,0.075663]